[Event "Gaprindashvili Cup Women I Stage 2020"]
[Site "Online"]
[Date "2020.11.04"]
[Round "5.9"]
[White "Ashotia, Barbare"]
[Black "Tsetskhladze, Mariam"]
[Result "1-0"]
[ECO "C41"]
[WhiteElo "1076"]
[BlackElo "1477"]
[Annotator "NA RC"]
[PlyCount "63"]
[EventDate "2020.11.04"]
[EventType "swiss"]
[SourceTitle "playchess.com"]
[Source "ChessBase"]
[SourceQuality "1"]
[TimeControl "1500+5"]

1. e4 {[%emt 0:00:00]} e5 {[%emt 0:00:05]} 2. Nf3 {[%emt 0:00:03]} d6 {[%emt 0:00:04]} 3. d4 {[%emt 0:00:04]} exd4 {[%emt 0:00:01]} 4. Nxd4 {[%emt 0:00:03]} Nf6 {[%emt 0:00:11]} 5. Nc3 {[%emt 0:00:10]} Be7 {[%emt 0:00:02]} 6. Bc4 {[%emt 0:00:17]} a6 {[%emt 0:00:58]} 7. a4 {[%emt 0:00:22]} Nxe4 {[%emt 0:00:24]} 8. Bxf7+ {[%emt 0:01:27]} Kxf7 {[%emt 0:00:26]} 9. Nxe4 {[%emt 0:00:11]} Rf8 {[%emt 0:00:19]} 10. O-O {[%emt 0:01:35]} Kg8 {[%emt 0:00:04]} 11. b3 {[%emt 0:00:32]} Bf5 {[%emt 0:00:38]} 12. Nxf5 {[%emt 0:00:29]} Rxf5 {[%emt 0:00:07]} 13. Bb2 {[%emt 0:00:07]} Nc6 {[%emt 0:00:25]} 14. Qg4 {[%emt 0:00:42]} Rf7 {[%emt 0:00:11]} 15. Rad1 {[%emt 0:00:07]} Qf8 {[%emt 0:00:20]} 16. f4 {[%emt 0:00:34]} Rd8 {[%emt 0:00:28]} 17. f5 {[%emt 0:00:15]} Ne5 {[%emt 0:00:55]} 18. Bxe5 {[%emt 0:00:23]} dxe5 {[%emt 0:00:15]} 19. Rxd8 {[%emt 0:00:18]} Bxd8 {[%emt 0:00:05]} 20. h3 {[%emt 0:00:48]} Bf6 {[%emt 0:02:35]} 21. Qg3 {[%emt 0:00:39]} Qe7 {[%emt 0:00:42]} 22. Re1 {[%emt 0:00:17]} Kh8 {[%emt 0:01:37]} 23. Qd3 {[%emt 0:00:39]} Qd7 {[%emt 0:05:07]} 24. Rd1 {[%emt 0:00:49]} Qxf5 {[%emt 0:05:03]} 25. Qd5 {[%emt 0:00:46]} Bh4 {[%emt 0:03:17]} 26. Qxb7 {[%emt 0:01:09]} h6 {[%emt 0:00:20]} 27. Qd5 {[%emt 0:01:55]} Rf8 {[%emt 0:00:24]} 28. Qc4 {[%emt 0:01:37]} Qg6 {[%emt 0:00:49]} 29. Rf1 {[%emt 0:02:38]} Rxf1+ {[%emt 0:00:38]} 30. Kxf1 {[%emt 0:00:05]} Qf5+ {[%emt 0:00:02]} 31. Kg1 {[%emt 0:00:07]} Qf4 {[%emt 0:00:37]} 32. Qd3 {[%emt 0:00:42]} 1-0

[Event "Gaprindashvili Cup Women I Stage 2020"]
[Site "Online"]
[Date "2020.11.04"]
[Round "5.10"]
[White "Dolakidze, Mariam"]
[Black "Limar, Maria"]
[Result "1-0"]
[ECO "D02"]
[WhiteElo "1416"]
[BlackElo "1229"]
[Annotator "NA RC"]
[PlyCount "87"]
[EventDate "2020.11.04"]
[EventType "swiss"]
[SourceTitle "playchess.com"]
[Source "ChessBase"]
[SourceQuality "1"]
[TimeControl "1500+5"]

1. Nf3 {[%emt 0:00:00]} d5 {[%emt 0:00:06]} 2. d4 {[%emt 0:00:02]} Bf5 {[%emt 0:00:16]} 3. g3 {[%emt 0:00:21]} Nf6 {[%emt 0:00:08]} 4. Bg2 {[%emt 0:00:02]} e6 {[%emt 0:00:08]} 5. c4 {[%emt 0:00:03]} Be7 {[%emt 0:00:08]} 6. Nc3 {[%emt 0:00:04]} h6 {[%emt 0:00:20]} 7. O-O {[%emt 0:00:05]} O-O {[%emt 0:00:37]} 8. Qb3 {[%emt 0:00:12]} b6 {[%emt 0:02:42]} 9. Nh4 {[%emt 0:00:05]} c6 {[%emt 0:02:16]} 10. Nxf5 {[%emt 0:00:07]} exf5 {[%emt 0:00:03]} 11. cxd5 {[%emt 0:00:02]} Qd7 {[%emt 0:00:22]} 12. dxc6 {[%emt 0:00:07]} Nxc6 {[%emt 0:00:03]} 13. d5 {[%emt 0:00:02]} Na5 {[%emt 0:00:10]} 14. Qd1 {[%emt 0:00:06]} Rad8 {[%emt 0:00:09]} 15. Bf4 {[%emt 0:00:12]} Bb4 {[%emt 0:02:34]} 16. Rc1 {[%emt 0:02:24]} Rc8 {[%emt 0:01:23]} 17. Be5 {[%emt 0:00:12]} Ng4 {[%emt 0:02:08]} 18. Bd4 {[%emt 0:00:29]} Be7 {[%emt 0:00:36]} 19. h3 {[%emt 0:00:59]} Nf6 {[%emt 0:00:08]} 20. Qd3 {[%emt 0:00:48]} Nc4 {[%emt 0:00:54]} 21. b3 {[%emt 0:00:09]} Nd6 {[%emt 0:00:08]} 22. e3 {[%emt 0:00:36]} Nb7 {[%emt 0:02:49]} 23. Rfd1 {[%emt 0:01:07]} Rfd8 {[%emt 0:00:36]} 24. Kh2 {[%emt 0:02:17]} Nd6 {[%emt 0:03:14]} 25. Be5 {[%emt 0:00:43]} Rc5 {[%emt 0:02:18]} 26. Rc2 {[%emt 0:02:49]} Nfe8 {[%emt 0:01:03]} 27. Rdc1 {[%emt 0:00:34]} Bf6 {[%emt 0:00:36]} 28. Bxf6 {[%emt 0:00:10]} Nxf6 {[%emt 0:00:04]} 29. Ne2 {[%emt 0:00:36]} Rxc2 {[%emt 0:00:32]} 30. Rxc2 {[%emt 0:00:07]} Nfe4 {[%emt 0:00:41]} 31. Nc3 {[%emt 0:00:27]} Nxc3 {[%emt 0:00:13]} 32. Rxc3 {[%emt 0:00:05]} Rc8 {[%emt 0:00:06]} 33. Qc2 {[%emt 0:00:09]} Rxc3 {[%emt 0:00:06]} 34. Qxc3 {[%emt 0:00:01]} Nb7 {[%emt 0:00:06]} 35. Qc6 {[%emt 0:00:05]} Nc5 {[%emt 0:00:03]} 36. d6 {[%emt 0:00:37]} Kf8 {[%emt 0:00:07]} 37. Qa8+ {[%emt 0:00:12]} Qe8 {[%emt 0:00:03]} 38. Qxa7 {[%emt 0:00:04]} Nd7 {[%emt 0:00:04]} 39. Bc6 {[%emt 0:00:05]} Qc8 {[%emt 0:00:07]} 40. Qxd7 {[%emt 0:00:03]} Qxd7 {[%emt 0:00:06]} 41. Bxd7 {[%emt 0:00:02]} f6 {[%emt 0:00:02]} 42. Bxf5 {[%emt 0:00:02]} Ke8 {[%emt 0:00:03]} 43. d7+ {[%emt 0:00:02]} Kd8 {[%emt 0:00:02]} 44. Kg2 {[%emt 0:00:00]} 1-0

[Event "Gaprindashvili Cup Women I Stage 2020"]
[Site "Online"]
[Date "2020.11.04"]
[Round "6.1"]
[White "Bedoshvili, Dea"]
[Black "Esadze, Tamari"]
[Result "1/2-1/2"]
[ECO "D02"]
[WhiteElo "1667"]
[BlackElo "1889"]
[Annotator "NA RC"]
[PlyCount "54"]
[EventDate "2020.11.04"]
[EventType "swiss"]
[SourceTitle "playchess.com"]
[Source "ChessBase"]
[SourceQuality "1"]
[TimeControl "1500+5"]

{[%evp 9,54,-17,-23,-22,-15,-25,-7,-12,-22,-29,-34,-56,-11,0,-4,-4,-9,-13,-26,-62,-43,-65,-40,-56,-41,-23,-26,-31,-14,-41,-43,-46,-49,-30,-5,-66,-13,0,0,0,29,0,41,0,19,33,23]} 1. d4 {[%emt 0:00:04]} d5 {[%emt 0:00:05]} 2. Nf3 {[%emt 0:00:03]} Nf6 {[%emt 0:00:03]} 3. Nbd2 {[%emt 0:00:27]} e6 {[%emt 0:00:08]} 4. g3 {[%emt 0:00:03]} c5 {[%emt 0:00:11]} 5. c3 {[%emt 0:00:08]} Nc6 {[%emt 0:00:07]} 6. Bg2 {[%emt 0:00:06] D02: 1 d4 d5 2 Nf3 sidelines, including 2...Nf6 3 g3 and 2...Nf6 3 Bf4.} cxd4 {[%emt 0:00:32]} 7. cxd4 {[%emt 0:00:04]} Bd6 {[%emt 0:00:08]} 8. O-O {[%emt 0:00:03]} O-O {[%emt 0:00:02] [#]} 9. Nb1 $146 {[%emt 0:00:11]} ({Predecessor:} 9. b3 Qb6 10. Bb2 Bd7 11. Re1 Rac8 12. e4 dxe4 13. Nxe4 Nxe4 14. Rxe4 Ne7 15. Ne5 Bxe5 16. Rxe5 Bc6 17. Bxc6 Qxc6 {0-1 (43) Munasinghe,L (1940)-Lakshitha,H (1707) Kurunegala 2019}) 9... Ne4 {[%emt 0:00:45]} 10. Bf4 {[%emt 0:00:17]} f6 {[%emt 0:01:04]} 11. Bxd6 {[%emt 0:01:01]} Qxd6 {[%emt 0:00:04]} 12. Nbd2 {[%emt 0:00:14]} Bd7 {[%emt 0:02:19]} 13. Nb3 {[%emt 0:00:18]} a5 {[%emt 0:00:55]} 14. a4 {[%emt 0:02:31]} Nb4 {[%emt 0:00:24]} 15. Nfd2 {[%emt 0:00:35]} Nxd2 {[%emt 0:01:12]} 16. Qxd2 {[%emt 0:00:17]} b6 {[%emt 0:00:03]} 17. Rfc1 {[%emt 0:01:05]} Rac8 {[%emt 0:00:18]} 18. Rc3 {[%emt 0:00:35]} e5 {[%emt 0:01:11]} 19. e3 {[%emt 0:00:46]} e4 {[%emt 0:01:43]} 20. Bf1 {[%emt 0:00:10]} f5 {[%emt 0:03:51]} 21. Nc1 {[%emt 0:01:03]} h6 {[%emt 0:00:39]} 22. Ne2 {[%emt 0:00:50]} Nd3 {[%emt 0:01:40]} 23. Nc1 {[%emt 0:00:18]} Nxc1 {[%emt 0:01:24]} 24. Qxc1 {[%emt 0:00:31]} Qb4 {[%emt 0:02:06]} 25. Qc2 {[%emt 0:01:30]} Kh7 {[%emt 0:00:55]} 26. Bb5 {[%emt 0:01:57]} Rxc3 $11 {[%emt 0:01:55]} 27. bxc3 {[%emt 0:00:08]} Qd6 {[%emt 0:00:04]} 1/2-1/2

[Event "Gaprindashvili Cup Women I Stage 2020"]
[Site "Online"]
[Date "2020.11.04"]
[Round "6.2"]
[White "Tsotsonava, Elene"]
[Black "Kirtadze, Anastasia"]
[Result "0-1"]
[ECO "C10"]
[WhiteElo "1805"]
[BlackElo "1810"]
[Annotator "NA RC"]
[PlyCount "46"]
[EventDate "2020.11.04"]
[EventType "swiss"]
[SourceTitle "playchess.com"]
[Source "ChessBase"]
[SourceQuality "1"]
[TimeControl "1500+5"]

{[%evp 23,46,7,24,9,40,38,108,41,63,-96,-93,-107,91,-79,-74,-51,-62,-60,-53,-88,-90,-727,-847,-762,-889]} 1. e4 {[%emt 0:00:00]} e6 {[%emt 0:00:18]} 2. d4 {[%emt 0:00:03]} d5 {[%emt 0:00:08]} 3. Nd2 {[%emt 0:00:03]} dxe4 {[%emt 0:00:16]} 4. Nxe4 {[%emt 0:00:03]} Nd7 {[%emt 0:00:12]} 5. Nf3 {[%emt 0:00:15]} Ngf6 {[%emt 0:00:05]} 6. Nxf6+ {[%emt 0:00:01]} Nxf6 {[%emt 0:00:04]} 7. Bg5 {[%emt 0:00:02]} Be7 {[%emt 0:00:03]} 8. Bd3 {[%emt 0:00:02]} O-O {[%emt 0:00:04]} 9. Qe2 {[%emt 0:00:06]} c5 {[%emt 0:00:06]} 10. O-O-O {[%emt 0:00:05]} cxd4 {[%emt 0:00:04]} 11. h4 {[%emt 0:00:05]} Qa5 {[%emt 0:00:05]} 12. Kb1 {[%emt 0:00:03]} Bd7 {[%emt 0:00:27] C10: French with 3 Nc3: Unusual Black 3rd moves and 3...dxe4.} 13. Nxd4 {[%emt 0:00:13] [#]} Rad8 $146 {[%emt 0:00:35]} ({Predecessor:} 13... Rfd8 14. Nf3 Bc6 15. Ne5 h6 16. Bd2 Bb4 17. Nc4 Qc5 18. Bc1 Qe7 19. Rhg1 Nd7 20. g4 Qxh4 21. g5 Nf8 22. gxh6 g6 23. Bg5 Qh2 24. Ne5 Rd5 25. Ng4 {1-0 (25) Sjugirov,S (2627)-Kristinsson,B (2033) Rogaska Slatina 2011}) 14. Rhe1 {[%emt 0:01:47]} b5 {[%emt 0:01:28]} (14... Bc6 $14 15. Nxc6 bxc6) 15. Qf3 {[%emt 0:08:43]} (15. h5 $16) 15... b4 {[%emt 0:01:30]} 16. Nf5 {[%emt 0:01:50]} (16. g4 $14 {keeps the upper hand.}) 16... exf5 {[%emt 0:00:48]} 17. Rxe7 {[%emt 0:00:05]} Qb6 $2 {[%emt 0:00:15]} (17... Be6 $17 18. Rxe6 fxe6) 18. Rxd7 $2 {[%emt 0:03:33]} (18. Re5 $16 {keeps the pressure on.}) 18... Rxd7 {[%emt 0:00:18]} 19. Qxf5 {[%emt 0:00:03]} Rd5 {[%emt 0:01:41]} 20. Qf3 {[%emt 0:00:19] [#]} Rfd8 $1 {[%emt 0:00:18]} 21. Bxf6 {[%emt 0:05:42]} Qxf6 {[%emt 0:00:04]} 22. Bxh7+ $2 {[%emt 0:00:06]} (22. Qxf6 $17 gxf6 23. b3) 22... Kxh7 {[%emt 0:00:05]} 23. Qe4+ {[%emt 0:00:03]} Qg6 $19 {[%emt 0:00:09]} 0-1

[Event "Gaprindashvili Cup Women I Stage 2020"]
[Site "Online"]
[Date "2020.11.04"]
[Round "6.3"]
[White "Khazhomia, Anuki"]
[Black "Zarkua, Anastasia"]
[Result "1-0"]
[ECO "E91"]
[WhiteElo "1880"]
[BlackElo "1124"]
[Annotator "NA RC"]
[PlyCount "135"]
[EventDate "2020.11.04"]
[EventType "swiss"]
[SourceTitle "playchess.com"]
[Source "ChessBase"]
[SourceQuality "1"]
[TimeControl "1500+5"]

{[%evp 15,128,39,54,62,60,25,52,22,102,65,150,140,148,84,142,74,177,-14,197,49,227,229,327,362,342,358,375,356,362,241,383,358,522,110,102,83,193,184,226,186,32767,32767,32767,32767,32767,32767,32767,32767,32767,32767,32767,162,186,200,208,32767,32767,32767,32767,200,387,0,364,363,679,790,687,838,754,1024,916,1079,1017,1664,1287,1298,1222,1253,1212,1550,32767,32767,32767,32767,12843,29973,32767,32767,32767,32767,32767,32767,32767,32767,32767,32767,32767,32767,32767,32767,32767,32767,32767,32767,32767,32767,32767,32767,29995,12850,29995,29996,29997,1927,29997]} 1. d4 {[%emt 0:00:01]} Nf6 {[%emt 0:00:04]} 2. c4 {[%emt 0:00:03]} g6 {[%emt 0:00:04]} 3. Nc3 {[%emt 0:00:03]} Bg7 {[%emt 0:00:01]} 4. e4 {[%emt 0:00:03]} d6 {[%emt 0:00:03]} 5. Nf3 {[%emt 0:00:03]} O-O {[%emt 0:00:03]} 6. Be2 {[%emt 0:00:04]} Nc6 {[%emt 0:00:32]} 7. O-O {[%emt 0:00:06]} e6 {[%emt 0:00:10] E91: King's Indian: Classical: 6 Be2, unusual replies including 6...c5 and 6...Bg4.} 8. d5 {[%emt 0:01:58]} exd5 {[%emt 0:00:09]} 9. cxd5 {[%emt 0:00:25]} Ne7 {[%emt 0:00:17]} 10. Be3 {[%emt 0:00:30] [#]} Bd7 $146 {[%emt 0:00:37]} ({Predecessor:} 10... c6 11. dxc6 bxc6 12. Rc1 d5 13. exd5 Nexd5 14. Nxd5 cxd5 15. b4 Ne4 16. Bd4 Bh6 {½-½ (25) Barria Zuniga,D (2427)-Solaesa Navalpotro,L (2291) Collado Villalba 2007}) 11. Qb3 {[%emt 0:00:34]} b6 {[%emt 0:01:10]} (11... c6 $11 {keeps the balance.}) 12. Rac1 {[%emt 0:00:12]} a5 {[%emt 0:00:06]} (12... c5 $14) 13. Nd4 {[%emt 0:03:01]} Re8 {[%emt 0:02:11]} 14. f3 {[%emt 0:01:32]} ({Better is} 14. a3 $18) 14... Rc8 {[%emt 0:01:19]} 15. Rc2 {[%emt 0:02:47]} (15. Bf2 $142) 15... Ra8 {[%emt 0:02:10]} (15... a4 $16 16. Qa3 (16. Nxa4 Nexd5 {[%mdl 64] Pin} 17. Bf2 Nf4 $11) 16... Nf5 17. Nxf5 gxf5) 16. Ncb5 $2 {[%emt 0:01:08]} (16. Bf2 $16) 16... Rc8 $2 {[%emt 0:01:33]} (16... Nexd5 $11 {and Black stays safe.} 17. Bf2 (17. exd5 a4 $15) 17... a4) 17. Rfc1 {[%emt 0:00:23]} ({Better is} 17. Bc4 $18) 17... Bxb5 $2 {[%emt 0:01:40]} (17... Nexd5 $14 18. Bd2 (18. exd5 a4 $14) 18... Nb4 19. Bxb4 (19. Rxc7 Rxc7 20. Rxc7 Nxe4 $15) 19... axb4) 18. Nxb5 {[%emt 0:03:34]} Rb8 {[%emt 0:02:24]} (18... a4 $142 19. Qd3 (19. Qxa4 Nexd5 20. Bg5 Re5 $16) 19... Nd7 20. Nxc7 (20. Rxc7 Nc5 $16) 20... Rf8) 19. Nxc7 {[%emt 0:00:19]} ({Not} 19. Rxc7 Nfxd5 20. Ra7 (20. exd5 Nf5 $11) 20... Nxe3 $14) 19... Rf8 {[%emt 0:00:14]} 20. Na6 {[%emt 0:00:07]} Rb7 {[%emt 0:00:13]} 21. Rc7 {[%emt 0:00:05]} Rxc7 {[%emt 0:00:38]} 22. Nxc7 {[%emt 0:00:32]} Nc8 $2 {[%emt 0:00:36]} (22... Nd7 23. Rc2 (23. Bxb6 Nxb6 24. Qxb6 Qb8 $18) 23... Nc8) 23. Ba6 {[%emt 0:01:06]} Qd7 {[%emt 0:00:13] [#]} 24. Bxb6 $2 {[%emt 0:00:45]} (24. Ne6 $1 $18 {[%mdl 512]} fxe6 25. dxe6) 24... Nxb6 {[%emt 0:00:08]} 25. Qxb6 {[%emt 0:00:04]} Bh6 {[%emt 0:01:07]} (25... Qa4 $16) 26. Rc6 {[%emt 0:00:41]} Ne8 {[%emt 0:01:13]} 27. Nxe8 {[%emt 0:00:22]} Rxe8 {[%emt 0:00:04]} 28. Qc7 {[%emt 0:02:50]} Qxc7 {[%emt 0:00:33]} 29. Rxc7 {[%emt 0:00:03]} Bf4 {[%emt 0:00:04]} 30. Kf2 {[%emt 0:01:00]} Kg7 {[%emt 0:00:16]} 31. b3 {[%emt 0:00:06]} Be5 {[%emt 0:00:05]} 32. h3 {[%emt 0:00:33]} Ra8 {[%emt 0:00:09]} 33. Bb5 {[%emt 0:00:13]} Rb8 {[%emt 0:00:09]} 34. a4 {[%emt 0:00:25]} Bd4+ {[%emt 0:00:06]} 35. Ke2 {[%emt 0:00:08]} Bc5 {[%emt 0:00:03]} 36. Kd3 {[%emt 0:00:05]} Bb4 $11 {[%emt 0:00:03] and Black has nothing to worry.} 37. Kc4 {[%emt 0:00:04]} (37. f4 $142) 37... Rf8 $2 {[%emt 0:00:13]} (37... g5 {might work better.} 38. Kd4 Kf6) 38. Kd3 $2 {[%emt 0:00:59]} (38. f4 $18) 38... Kh6 $2 {[%emt 0:00:06]} 39. f4 {[%emt 0:00:04]} f5 $2 {[%emt 0:00:20]} (39... f6 40. h4 Kh5 41. Rxh7+ Kg4) 40. e5 {[%emt 0:00:06]} dxe5 {[%emt 0:00:18]} 41. fxe5 {[%emt 0:00:02]} f4 {[%emt 0:00:03]} 42. Ke4 {[%emt 0:00:03]} Rf5 {[%emt 0:00:32]} 43. d6 {[%emt 0:00:16]} Rf8 {[%emt 0:00:12]} 44. d7 {[%emt 0:00:16]} Be7 {[%emt 0:00:05]} 45. Kd5 {[%emt 0:00:16]} f3 {[%emt 0:00:19]} 46. gxf3 {[%emt 0:00:03]} Rxf3 {[%emt 0:00:04]} 47. Rc8 {[%emt 0:00:11]} Rxh3 {[%emt 0:00:44]} 48. d8=Q {[%emt 0:00:05]} Bxd8 {[%emt 0:00:03]} 49. Rxd8 {[%emt 0:00:01]} Rxb3 {[%emt 0:00:05]} 50. e6 {[%emt 0:00:09]} Rb2 {[%emt 0:00:08]} 51. e7 {[%emt 0:00:03]} Rd2+ {[%emt 0:00:02]} 52. Kc6 {[%emt 0:00:05]} Rc2+ {[%emt 0:00:03]} 53. Kb7 {[%emt 0:00:03]} Re2 {[%emt 0:00:03]} 54. e8=Q {[%emt 0:00:03]} Rxe8 {[%emt 0:00:03]} 55. Rxe8 {[%emt 0:00:06]} g5 {[%emt 0:00:03]} 56. Rg8 {[%emt 0:00:06]} Kh5 {[%emt 0:00:03]} 57. Kb6 {[%emt 0:00:07]} g4 {[%emt 0:00:03]} 58. Kxa5 {[%emt 0:00:03]} Kh4 {[%emt 0:00:02]} 59. Kb4 {[%emt 0:00:04]} h5 {[%emt 0:00:02]} 60. a5 {[%emt 0:00:04]} g3 {[%emt 0:00:02]} 61. a6 {[%emt 0:00:06]} Kh3 {[%emt 0:00:03]} 62. Bc6 {[%emt 0:00:05]} h4 {[%emt 0:00:04]} 63. a7 {[%emt 0:00:05]} g2 {[%emt 0:00:18]} 64. Bxg2+ {[%emt 0:00:07]} (64. a8=Q $142 g1=Q 65. Bg2+ Kh2 66. Qb8#) 64... Kh2 {[%emt 0:00:02]} 65. a8=Q {[%emt 0:00:06]} h3 {[%emt 0:00:03]} 66. Bxh3 {[%emt 0:00:03]} Kxh3 {[%emt 0:00:07]} 67. Qg2+ {[%emt 0:00:04]} Kh4 {[%emt 0:00:04]} 68. Qg4# {[%emt 0:00:04]} 1-0

[Event "Gaprindashvili Cup Women I Stage 2020"]
[Site "Online"]
[Date "2020.11.04"]
[Round "6.4"]
[White "Lagazauri, Tamar"]
[Black "Abuladze, Natali"]
[Result "1-0"]
[ECO "A16"]
[WhiteElo "1657"]
[BlackElo "1049"]
[Annotator "NA RC"]
[PlyCount "91"]
[EventDate "2020.11.04"]
[EventType "swiss"]
[SourceTitle "playchess.com"]
[Source "ChessBase"]
[SourceQuality "1"]
[TimeControl "1500+5"]

1. c4 {[%emt 0:00:03]} Nf6 {[%emt 0:00:11]} 2. Nc3 {[%emt 0:00:05]} g6 {[%emt 0:00:05]} 3. g3 {[%emt 0:00:03]} Bg7 {[%emt 0:00:03]} 4. Bg2 {[%emt 0:00:01]} O-O {[%emt 0:00:03]} 5. d3 {[%emt 0:00:09]} d6 {[%emt 0:00:09]} 6. e4 {[%emt 0:00:10]} Nc6 {[%emt 0:00:58]} 7. Nge2 {[%emt 0:00:23]} b6 {[%emt 0:01:15]} 8. e5 {[%emt 0:00:57]} dxe5 {[%emt 0:03:14]} 9. Bxc6 {[%emt 0:00:07]} Rb8 {[%emt 0:00:10]} 10. Bg2 {[%emt 0:00:11]} Bb7 {[%emt 0:00:06]} 11. O-O {[%emt 0:00:53]} Qd7 {[%emt 0:02:02]} 12. Bxb7 {[%emt 0:00:29]} Rxb7 {[%emt 0:00:04]} 13. Ne4 {[%emt 0:00:18]} Nxe4 {[%emt 0:00:35]} 14. dxe4 {[%emt 0:00:02]} Rd8 {[%emt 0:00:05]} 15. Qxd7 {[%emt 0:00:06]} Rxd7 {[%emt 0:00:02]} 16. Be3 {[%emt 0:00:03]} Rb8 {[%emt 0:00:09]} 17. Rfd1 {[%emt 0:00:06]} Rbd8 {[%emt 0:00:03]} 18. Nc3 {[%emt 0:00:04]} c6 {[%emt 0:00:11]} 19. Rxd7 {[%emt 0:00:04]} Rxd7 {[%emt 0:00:03]} 20. Rd1 {[%emt 0:00:02]} Rxd1+ {[%emt 0:00:05]} 21. Nxd1 {[%emt 0:00:02]} Kf8 {[%emt 0:00:10]} 22. b4 {[%emt 0:00:26]} e6 {[%emt 0:00:18]} 23. Kf1 {[%emt 0:00:24]} f5 {[%emt 0:00:07]} 24. f3 {[%emt 0:00:03]} Ke7 {[%emt 0:00:06]} 25. Ke2 {[%emt 0:00:07]} Bf6 {[%emt 0:01:29]} 26. a4 {[%emt 0:01:32]} g5 {[%emt 0:00:13]} 27. c5 {[%emt 0:00:25]} b5 {[%emt 0:02:10]} 28. axb5 {[%emt 0:00:04]} cxb5 {[%emt 0:00:02]} 29. Nc3 {[%emt 0:00:05]} a6 {[%emt 0:00:05]} 30. exf5 {[%emt 0:00:06]} exf5 {[%emt 0:00:07]} 31. Nd5+ {[%emt 0:00:02]} Kf7 {[%emt 0:00:17]} 32. Nxf6 {[%emt 0:00:03]} Kxf6 {[%emt 0:00:03]} 33. Bxg5+ {[%emt 0:00:54]} Ke6 {[%emt 0:00:14]} 34. Bd8 {[%emt 0:00:09]} Kd7 {[%emt 0:00:05]} 35. Bb6 {[%emt 0:00:05]} Kc6 {[%emt 0:00:01]} 36. g4 {[%emt 0:00:05]} f4 {[%emt 0:00:19]} 37. h4 {[%emt 0:00:08]} Kd5 {[%emt 0:00:08]} 38. g5 {[%emt 0:00:03]} Kc6 {[%emt 0:00:03]} 39. h5 {[%emt 0:00:02]} Kd5 {[%emt 0:00:02]} 40. g6 {[%emt 0:00:02]} hxg6 {[%emt 0:00:11]} 41. hxg6 {[%emt 0:00:01]} Ke6 {[%emt 0:00:02]} 42. c6 {[%emt 0:00:06]} Ke7 {[%emt 0:00:12]} 43. c7 {[%emt 0:00:02]} Kd7 {[%emt 0:00:02]} 44. g7 {[%emt 0:00:02]} Ke7 {[%emt 0:00:02]} 45. g8=Q {[%emt 0:00:04]} Kd7 {[%emt 0:00:08]} 46. c8=Q+ {[%emt 0:00:04]} 1-0

[Event "Gaprindashvili Cup Women I Stage 2020"]
[Site "Online"]
[Date "2020.11.04"]
[Round "6.5"]
[White "Maghlakelidze, Rusudan"]
[Black "Antia, Sopia"]
[Result "1-0"]
[ECO "B54"]
[WhiteElo "1613"]
[BlackElo "1594"]
[Annotator "NA RC"]
[PlyCount "71"]
[EventDate "2020.11.04"]
[EventType "swiss"]
[SourceTitle "playchess.com"]
[Source "ChessBase"]
[SourceQuality "1"]
[TimeControl "1500+5"]

1. e4 {[%emt 0:00:00]} c5 {[%emt 0:00:04]} 2. Nf3 {[%emt 0:00:03]} Nc6 {[%emt 0:00:06]} 3. d4 {[%emt 0:00:06]} cxd4 {[%emt 0:00:02]} 4. Nxd4 {[%emt 0:00:01]} e5 {[%emt 0:00:03]} 5. Nb3 {[%emt 0:00:17]} d6 {[%emt 0:02:13]} 6. Nc3 {[%emt 0:00:10]} Be6 {[%emt 0:00:34]} 7. Be3 {[%emt 0:00:14]} Nge7 {[%emt 0:00:30]} 8. Nd5 {[%emt 0:01:15]} f5 {[%emt 0:01:43]} 9. Nxe7 {[%emt 0:01:43]} Bxe7 {[%emt 0:00:10]} 10. exf5 {[%emt 0:00:14]} Bxf5 {[%emt 0:00:11]} 11. Bc4 {[%emt 0:00:08]} Qd7 {[%emt 0:01:38]} 12. Qd2 {[%emt 0:00:32]} O-O-O {[%emt 0:01:05]} 13. O-O-O {[%emt 0:00:21]} Kb8 {[%emt 0:01:49]} 14. a3 {[%emt 0:01:42]} Rhe8 {[%emt 0:01:24]} 15. Qe2 {[%emt 0:00:39]} Qc7 {[%emt 0:01:11]} 16. g4 {[%emt 0:00:52]} Bd7 {[%emt 0:01:33]} 17. Kb1 {[%emt 0:00:37]} Na5 {[%emt 0:00:47]} 18. Nxa5 {[%emt 0:00:08]} Qxa5 {[%emt 0:00:02]} 19. Bd5 {[%emt 0:01:52]} Bb5 {[%emt 0:00:51]} 20. c4 {[%emt 0:01:39]} Ba4 {[%emt 0:00:39]} 21. Rc1 {[%emt 0:01:52]} Bc6 {[%emt 0:03:00]} 22. Rhd1 {[%emt 0:00:15]} h6 {[%emt 0:01:36]} 23. Rc3 {[%emt 0:06:40]} Bxd5 {[%emt 0:01:19]} 24. Rxd5 {[%emt 0:00:04]} Qc7 {[%emt 0:00:08]} 25. Qc2 {[%emt 0:00:46]} Qc6 {[%emt 0:00:55]} 26. Qe4 {[%emt 0:00:51]} Rc8 {[%emt 0:01:26]} 27. b4 {[%emt 0:00:24]} a6 {[%emt 0:00:14]} 28. Qc2 {[%emt 0:01:33]} b5 {[%emt 0:00:44]} 29. Qd1 {[%emt 0:01:26]} bxc4 {[%emt 0:00:10]} 30. a4 {[%emt 0:00:11]} Qb7 {[%emt 0:00:32]} 31. b5 {[%emt 0:00:06]} Ka8 {[%emt 0:00:42]} 32. Ka2 {[%emt 0:00:22]} a5 {[%emt 0:00:13]} 33. b6 {[%emt 0:00:07]} Rc6 {[%emt 0:00:01]} 34. Rxa5+ {[%emt 0:00:04]} Kb8 {[%emt 0:00:02]} 35. Ra7 {[%emt 0:00:15]} Qc8 {[%emt 0:00:08]} 36. Qd5 {[%emt 0:00:18]} 1-0